Cogmind - Beta 11.1 --- EXPLORER MODE // 2022.07.09 @ 22:14:49 // Winter2019/RPGLIKE Player: Grimbling Result: Self-destructed Performance ------------- Evolutions (1) 500 Regions Visited (2) 400 Robots Destroyed (2) 10 Value Destroyed (6) 6 Prototype IDs (0) 0 Alien Tech Used (0) 0 Bonus (0) 0 TOTAL SCORE: 916 Bonus ------- None Cogmind --------- Core Integrity 410/600 Matter 186/300 Energy 100/100 System Corruption 0% Temperature Cool (0) Movement Hovering (56) Location -9/Materials Parts ------- > --- POWER (1) -------- (None) > --- PROPULSION (2) --- Hover Unit Hover Unit > --- UTILITY (2) ------ Tractor Beam > --- WEAPON (1) ------- Assault Rifle > --- INVENTORY (3) ---- (None) Peak State ------------ > --- POWER ------------ (None) > --- PROPULSION ------- Hover Unit Hover Unit > --- UTILITY ---------- Tractor Beam > --- WEAPON ----------- Assault Rifle > --- INVENTORY -------- (None) [Rating: 4] Favorites ----------- Power None Propulsion Hover Unit Hover Unit Hover Unit Utility Tractor Beam Device Tractor Beam Weapon Assault Rifle Ballistic Gun Assault Rifle Build | -11 -10 -9 ------- Run | Scr Mat Mat Slots Evolved 2 | 2 . . Power . | . . . Propulsion 1 | 1 . . Utility 1 | 1 . . Weapon . | . . . Parts Attached 6 | 1 5 . Power . | . . . Engine . | . . . Core . | . . . Reactor . | . . . Propulsion 2 | . 2 . Treads . | . . . Leg . | . . . Wheel . | . . . Hover 2 | . 2 . Flight . | . . . Utility 2 | . 2 . Device 2 | . 2 . Storage . | . . . Processor . | . . . Hackware . | . . . Protection . | . . . Artifact . | . . . Weapon 2 | 1 1 . Energy Gun . | . . . Energy Cannon . | . . . Ballistic Gun 2 | 1 1 . Ballistic Cannon . | . . . Launcher . | . . . Special Weapon . | . . . Impact Weapon . | . . . Slashing Weapon . | . . . Piercing Weapon . | . . . Special Melee Weapon . | . . . Unidentified Prototypes . | . . . Parts Lost . | . . . Power . | . . . Propulsion . | . . . Utility . | . . . Weapon . | . . . Highest Loss Streak . | . . . To Critical Strikes . | . . . Average Slot Usage (%) 43 | . 37 66 Hover 18 | . 14 33 Device 8 | . 6 16 Ballistic Gun 16 | . 16 16 Naked Turns . | . . . Heaviest Build 3 | 2 3 3 Greatest Support 12 | 3 12 12 Greatest Overweight (x) . | . . . Average Overweight (x) . | . . . Largest Inventory Capacity 3 | 3 3 3 Average Capacity 2 | 2 3 3 Most Carried . | . . . Average Carried . | . . . Final Capacity 3 | 3 3 3 Final Carried . | . . . Class Distribution -------------------- 100% | Hacker-Mutant Dominant Class ---------------- Hacker-Mutant | -10/Materials Hacker-Mutant | -9/Materials Resources | -11 -10 -9 ----------- Run | Scr Mat Mat Matter Collected 149 | 115 34 . Remotely . | . . . Salvage Created 34 | . 34 . Parts 7 | . 7 . Haulers Intercepted . | . . . Recyclers Shooed . | . . . Parts Field Recycled . | . . . Retrieved Matter . | . . . Parts Self-Destructed . | . . . Prevented . | . . . Kills | -11 -10 -9 ------- Run | Scr Mat Mat Combat Hostiles Destroyed . | . . . Classes Destroyed 2 | . 2 . Worker 1 | . 1 . Builder 1 | . 1 . Best Kill Streak 1 | . 1 . Combat Bots Only . | . . . Max Kills in Single Turn 1 | . 1 . Gunslinging . | . . . Exploded . | . . . Melee . | . . . Uniques/NPCs Destroyed . | . . . Combat | -11 -10 -9 -------- Run | Scr Mat Mat Damage Taken 238 | . 151 87 Core 190 | . 120 70 Absorbed by Shields . | . . . Redirected to Core 136 | . 80 56 Core Remaining (%) 90 | 100 80 . Volleys Fired 2 | . 2 . Largest 1 | . 1 . Hottest 20 | . 20 . Shots Fired 2 | . 2 . Gun 2 | . 2 . Cannon . | . . . Launcher . | . . . Special . | . . . Kinetic 2 | . 2 . Thermal . | . . . Explosive . | . . . Electromagnetic . | . . . Robot Hit Streak 2 | . 2 . Robot Miss Streak . | . . . Penetration Max . | . . . Secondary Targets . | . . . Shots Hit Robots 2 | . 2 . Core Hits 2 | . 2 . Critical Kills . | . . . Critical Parts Destroyed . | . . . Critical Strikes . | . . . Melee Attacks . | . . . Impact . | . . . Slashing . | . . . Piercing . | . . . Sneak Attacks . | . . . Combat Hostiles . | . . . Follow-up Attacks . | . . . Damage Inflicted 28 | . 28 . Guns 24 | . 24 . Cannons . | . . . Explosions . | . . . Melee . | . . . Ramming 4 | . 4 . Kinetic 24 | . 24 . Thermal . | . . . Explosive . | . . . Electromagnetic . | . . . Impact . | . . . Slashing . | . . . Piercing . | . . . Highest Corruption . | . . . Average Corruption . | . . . Corruption Purged . | . . . Corruption Blocked . | . . . Overload Shots . | . . . Overflow Damage . | . . . Projectiles . | . . . Explosions . | . . . Melee . | . . . Knockbacks . | . . . Impact . | . . . Kinetic . | . . . Secondary . | . . . Self-Inflicted Damage 2 | . 2 . Shots . | . . . Rammed 1 | . 1 . Targets Rammed 1 | . 1 . Kicked . | . . . Crushed . | . . . Highest Temperature . | . . . Average Temperature . | . . . Received Heat Transfer 114 | . 69 45 Siege Activations . | . . . Robots Corrupted . | . . . Combat Hostiles . | . . . Parts Fried . | . . . Impact Corruptions . | . . . Robots Melted . | . . . Combat Hostiles . | . . . Parts Melted . | . . . Heat Transferred . | . . . Parts Sabotaged . | . . . Parts Stolen . | . . . Parts Stripped . | . . . Power Chain Reactions . | . . . Missiles Intercepted . | . . . Alert | -11 -10 -9 ------- Run | Scr Mat Mat Peak Influence 61 | . 55 61 Initial 16 | . . 16 Average 18 | . 16 30 Maximum Alert Level . | . . . Low Security (%) 100 | 100 100 100 Level 1 . | . . . Level 2 . | . . . Level 3 . | . . . Level 4 . | . . . Level 5 . | . . . High Security . | . . . Max Security . | . . . Squads Dispatched 4 | . 3 1 Investigation 3 | . 3 . Extermination . | . . . Reinforcement 1 | . . 1 Assault . | . . . Garrison . | . . . Intercept . | . . . Searches Triggered . | . . . Construction Impeded . | . . . Haulers Reinforced . | . . . Active Scanning Responses . | . . . Cargo Convoy Interrupts . | . . . Stealth | -11 -10 -9 --------- Run | Scr Mat Mat Distress Signals 3 | . 1 2 Communications Jammed . | . . . Distress Signals . | . . . Times Spotted 20 | . 11 9 Peak Tracking Total 10 | . 9 10 Tactical Retreats 2 | . 2 . Traps | -11 -10 -9 ------- Run | Scr Mat Mat Traps Triggered 1 | . 1 . Indirectly . | . . . Trap Hack Attempts . | . . . Triggered . | . . . Disarmed . | . . . Reprogrammed . | . . . Reused . | . . . Traps Extracted . | . . . Installed . | . . . Triggered . | . . . Machines | -11 -10 -9 ---------- Run | Scr Mat Mat Machines Disabled . | . . . Max in Single Turn . | . . . Machines Sabotaged . | . . . Garrisons Compromised . | . . . Overloaded Fab Kills . | . . . Hacking | -11 -10 -9 --------- Run | Scr Mat Mat Machines Accessed 5 | . 5 . Terminals 5 | . 5 . Fabricators . | . . . Repair Stations . | . . . Recycling Units . | . . . Scanalyzers . | . . . Garrison Access . | . . . Total Hacks 10 | . 10 . Successful . | . . . Failed 10 | . 10 . Catastrophic 4 | . 4 . Database Lockouts . | . . . Manual 10 | . 10 . Terminals 10 | . 10 . Fabricators . | . . . Repair Stations . | . . . Recycling Units . | . . . Scanalyzers . | . . . Garrison Access . | . . . Terminal Hacks . | . . . Fabricator Hacks . | . . . Repair Station Hacks . | . . . Recycling Unit Hacks . | . . . Scanalyzer . | . . . Garrison Access Hacks . | . . . Unauthorized Hacks . | . . . Terminals . | . . . Fabricators . | . . . Repair Stations . | . . . Recycling Units . | . . . Scanalyzers . | . . . Garrison Access . | . . . Data Cores Recovered . | . . . Used . | . . . Hacking Detections 5 | . 5 . Full Trace Events 4 | . 4 . Feedback Events . | . . . Feedback Blocked . | . . . Robot Schematics Acquired . | . . . Robots Built . | . . . Authchips . | . . . Time . | . . . Total Robot Build Rating . | . . . Part Schematics Acquired . | . . . Parts Built . | . . . Authchips . | . . . Time . | . . . Total Part Build Rating . | . . . Parts Repaired . | . . . Time . | . . . Parts Recycled . | . . . Recycled Matter . | . . . Retrieved Matter . | . . . Retrieved Components . | . . . Parts Scanalyzed . | . . . Part Schematics Acquired . | . . . Parts Damaged . | . . . Bothacking | -11 -10 -9 ------------ Run | Scr Mat Mat Used RIF Installer . | . . . Robots Hacked . | . . . Non-combat . | . . . Combat . | . . . Robot Hacks Applied . | . . . Relay Couplers Released . | . . . Fabnet Peak Effective % . | . . . Robots Rewired . | . . . Allies Hacked . | . . . Hacks Repelled . | . . . Allies | -11 -10 -9 -------- Run | Scr Mat Mat Total Allies . | . . . Largest Group . | . . . Highest-Rated Group . | . . . Highest-Rated Ally . | . . . Total Orders . | . . . Ally Attacks . | . . . Total Damage . | . . . Kills . | . . . Allies Corrupted . | . . . Allies Melted . | . . . Intel | -11 -10 -9 ------- Run | Scr Mat Mat Robot Analysis Total . | . . . Derelict Logs Recovered . | . . . Drone Launches . | . . . Drone Recoveries . | . . . Exploration | -11 -10 -9 ------------- Run | Scr Mat Mat Turns Passed 189 | 14 139 36 Spaces Moved 330 | 26 241 63 Core 161 | 26 135 . Treads . | . . . Legs . | . . . Wheels . | . . . Hover 169 | . 106 63 Flight . | . . . Fastest Speed 50 | 50 50 56 Average Speed 53 | 50 52 56 Slowest Speed 60 | 50 60 56 Overloaded Moves . | . . . Propulsion Burnouts . | . . . Robots Hopped . | . . . Cave-ins Triggered . | . . . Exploration Rate (%) 26 | 3 64 13 Regions Visited 2 Branch Regions . Pre-discovered Areas . | . . . Known Exits Taken 2 | 1 1 . Unknown Exits Taken . | . . . Scrap Searched . | . . . Spaces Dug . | . . . Terrain Destroyed . | . . . Melee . | . . . Projectile . | . . . AOE . | . . . Terrain Rammed . | . . . Walls Destroyed . | . . . Machines Disabled . | . . . Actions | -11 -10 -9 --------- Run | Scr Mat Mat Total 337 | 26 248 63 Wait . | . . . Move 328 | 25 240 63 Hop . | . . . Pick Up . | . . . Fast Attach 6 | 1 5 . Attach . | . . . Detach . | . . . Swap . | . . . Drop . | . . . Fire 2 | . 2 . Melee . | . . . Ram 1 | . 1 . Kick . | . . . Crush . | . . . Escape Stasis . | . . . Rewire . | . . . Trap . | . . . Miscellaneous . | . . . Route ------- -11/Scrapyard -10/Materials (discovered 2 exits: *Mat / *Min) -9/Materials History --------- Turn | Location | Event 4 | -11/Scrapyard | Identified exit to Materials 4 | -11/Scrapyard | Discovered exit to Materials (range 14) 4 | -11/Scrapyard | Upgraded with Propulsion slot (x1) 4 | -11/Scrapyard | Upgraded with Utility slot (x1) 15 | -11/Scrapyard | Entered Materials 77 | -10/Materials | Identified exit to Mines 77 | -10/Materials | Discovered exit to Mines (range 8) 146 | -10/Materials | Identified exit to Materials 146 | -10/Materials | Discovered exit to Materials (range 15) 154 | -10/Materials | Entered another Materials area 156 | -9/Materials | Reached level 2 156 | -9/Materials | Reached level 3 190 | -9/Materials | Self-destructed Last Messages --------------- Investigation squad. 00124_ K-01 Serf cleans the Recycling Unit. 00129_ K-01 Serf collects debris. 00135_ Connecting with Terminal... 00135_ ALERT: Suspicious activity at Terminal M005. Dispatching Investigation squad. 00137_ Slammed into S-10 Pest. 00142_ K-01 Serf collects debris. 00146_ EXIT=FOUND: MATERIALS LOCATION=MATERIALS GOAL=ESCAPE 00156_ Reached level 2. 00156_ Reached level 3. 00172_ ALERT: Hostiles spotted, dispatching reinforcements to Terminal M002. 00179_ W-16 Scout distress signal alerts nearby ally. 00185_ C-30 ARC bursts open, deploying its payload. 00185_ S-10 Pest unfolds itself. 00186_ W-16 Scout distress signal alerts nearby ally. 00188_ K-01 Serf collects debris. Map ----- +----------------------------------------------------+ | ??????????????????????????????# | | ??????????????????????????????##+##### ######### | | ??????????????????????????????# # # #? | | ??????????????????????????????#[]] # # #? | | ??????????????????????????????#[]] + + #? | | ??????????????????????????????#]] # # !!! #? | | ??????????????????????????????# # # *! #? | | ??????????????????????????????# ?# #? !! #? | | ??????????????????????????????######?# #?######? | | ?????????????????????????????????????# #???????? | | ???????????????????????? ????????????# #???????? | | ???????????????????????# ???######???# #???????? | | ???????????????????????# ???# ??# #???????? | | ???????????????????????+ ???# ??# #???????? | | ???????????????????????# ???# ?# #???????? | | ??????????????######?### #??# ?# #???????? | | ????????????? ?r #?# # #???????? | | ????????????? "?# # #???????? | | ????????????ss ]r """ T?# + #???????? | | ????????????? w "R"r "?# # #???????? | | ?????????????? " " #?# # #???????" | | ???????????????"" #?########## ##???? "" | | ??????????????""" ! k########### #??"" "" | | ????????????u"""" u # | | ?????????? s s Y / "T | | ?????????? %s @ k # | | ?????????? #######+######+### #??+#### | | ???????????????????????? ??# ########??????? | | ??????????????????????# """# #?????????????? | | ??????????????????????# """# #?????????????? | | ??????????????????????# """# #?????????????? | | ??????????????????????# # #?????????????? | | ??????????????????????# """# #?????????????? | | ??????????????????????# """# #?????????????? | | ??????????????????????# """#####?????????????? | | ??????????????????????# ???????????????????? | | ??????????????????????#######????????????????????? | | ?????????????????????????????????????????????????? | | ?????????????????????????????????????????????????? | | ?????????????????????????????????????????????????? | | ?????????????????????????????????????????????????? | | ?????????????????????????????????????????????????? | | ?????????????????????????????????????????????????? | | ?????????????????????????????????????????????????? | | ?????????????????????????????????????????????????? | | ?????????????????????????????????????????????????? | | ?????????????????????????????????????????????????? | | ?????????????????????????????????????????????????? | | ?????????????????????????????????????????????????? | | ?????????????????????????????????????????????????? | +----------------------------------------------------+ Best States ------------- Heat Dissipation 25 Energy Generation 5 Energy Capacity 100 Matter Stores 215 Matter Capacity 300 Sight Range 16 Robot Scan Range 16 Terrain Scan Density 710 Resistance: KI 35 Resistance: TH 35 Resistance: EX 35 Resistance: EM 35 Resistance: I 35 Resistance: S 35 Resistance: P 35 Evasion (%) 53 Offensive Hacking 20 Item Schematics ----------------- None Robot Schematics ------------------ None Fabricated ------------ Nothing Alien Tech Used ----------------- None Achievements -------------- None Challenges ------------ None RPGLIKE | -11 -10 -9 --------- Run | Scr Mat Mat Levels Raised 2 | . . 2 XP Earned 9292 | 6000 . 3292 XP Spent 4790 | 2500 2290 . Upgrades 20 | 5 15 . Propulsion Slot 1 | 1 . . Utility Slot 1 | 1 . . Inventory Capacity 3 | 3 . . Sensor Range 8 | . 8 . Terrain Scan Density 7 | . 7 . Protomatter Created . | . . . Protomatter Decayed . | . . . Game ------ Seed EtherialPropulsionKatana Manual? 0 Play Time 00:04:09 Cumulative 293.6 hours Start 2022.07.09 @ 22:11:08 End 2022.07.09 @ 22:14:49 Sessions 1 Manual Loads 0 Difficulty Explorer Special Mode Winter2019/RPGLIKE Game No. 103 Rogue 0 Adventurer 1 Explorer 102 Win Type - Total 23 Types 11/1/5/3/0/1/1/0/1 Lore% 88 Gallery% 89 Achievement% 78 Wizard Run 0 Options --------- ASCII 0 Keyboard 1 Movement Numpad Keybinds 0 Fullscreen 0 Font 14/Terminus Map View 76x50 Tactical HUD 1 Map Filters BRIGHTNESS(150) Filters NONE Steam 1 RUN: 0b554e79-43c5-4aef-9816-e5af68aa5a20